lending/lending_fUSD_20241229
["ID","MTS","AMOUNT","RATE_DAILY","PERIOD"]
[347105379,1735500638188,-500.0,0.0001636,2]
[347105380,1735500638201,-500.0,0.0001636,2]
[347105381,1735500638211,-500.0,0.0001636,2]
[347105382,1735500638220,-500.0,0.0001636,2]
[347105383,1735500638229,-500.0,0.0001636,2]
[347105384,1735500638239,-500.0,0.0001636,2]
[347105385,1735500638248,-500.0,0.0001636,2]
[347105386,1735500638258,-2246.9,0.0001636,2]
[347105387,1735500638267,-181.5,0.00016361,2]
[347105388,1735500638277,-172.93,0.00016361,2]
[347105389,1735500638288,-504.55,0.00016361,2]
[347105390,1735500638298,-220.6,0.00016361,2]
[347105391,1735500638307,-405.6,0.00016361,2]
[347105392,1735500638316,-219.63,0.00016361,2]
[347105393,1735500638326,-174.64,0.00016361,2]
[347105394,1735500638335,-193.28,0.00016361,2]
[347105395,1735500638345,-550.47,0.00016361,2]
[347105396,1735500638354,-451.62,0.00016361,2]
[347105397,1735500638364,-500.0,0.00016361,2]
[347105398,1735500638373,-500.0,0.00016361,2]
[347105399,1735500638383,-1233.7,0.00016361,2]
[347105400,1735500638393,-500.0,0.00016361,2]
[347105401,1735500638402,-393.2,0.00016361,2]
[347105402,1735500638412,-500.0,0.00016361,2]
[347105403,1735500638421,-300.0,0.00016478,2]
[347105404,1735500638431,-500.0,0.00016546,2]
[347105405,1735500638441,-500.0,0.00016546,2]
[347105406,1735500638450,-500.0,0.00016546,2]
[347105407,1735500638459,-500.0,0.00016546,2]
[347105408,1735500638468,-500.0,0.00016546,2]
[347105409,1735500638478,-500.0,0.00016546,2]
[347105410,1735500638487,-612.3,0.00016546,2]
[347105411,1735500638497,-500.0,0.00016546,2]
[347105412,1735500638506,-500.0,0.00016546,2]
[347105413,1735500638516,-500.0,0.00016546,2]
[347105414,1735500638525,-500.0,0.00016546,2]
[347105415,1735500638535,-500.0,0.00016546,2]
[347105416,1735500638544,-601.24,0.00016546,2]
[347105417,1735500638554,-500.0,0.00016546,2]
[347105418,1735500638563,-500.0,0.00016546,2]
[347105419,1735500638573,-500.0,0.00016546,2]
[347105420,1735500638582,-500.0,0.00016547,2]
[347105421,1735500638591,-297.52,0.00016547,2]
[347105422,1735500638601,-500.0,0.00016547,2]
[347105423,1735500638610,-1500.0,0.000166,7]
[347105424,1735500638619,-500.0,0.00016632,14]
[347105425,1735500638629,-500.0,0.00016632,2]
[347105426,1735500638639,-500.0,0.00016632,2]
[347105427,1735500638648,-500.0,0.00016632,2]
[347105428,1735500638659,-500.0,0.00016632,2]
[347105429,1735500638669,-513.0,0.00016632,2]
[347105430,1735500638680,-500.0,0.00016632,2]
[347105431,1735500638689,-500.0,0.00016632,2]
[347105432,1735500638699,-500.0,0.00016632,2]
[347105433,1735500638709,-988.82,0.00016632,2]
[347105434,1735500638719,-500.0,0.00016632,2]
[347105435,1735500638729,-500.0,0.00016632,2]
[347105436,1735500638739,-510.61,0.00016632,2]
[347105437,1735500638749,-500.0,0.00016632,2]
[347105438,1735500638759,-500.0,0.00016632,2]
[347105439,1735500638768,-500.0,0.00016632,2]
[347105440,1735500638778,-547.08,0.00016632,2]
[347105441,1735500638788,-500.0,0.00016632,2]
[347105442,1735500638798,-500.0,0.00016632,2]
[347105443,1735500638807,-500.0,0.00016632,2]
[347105444,1735500638817,-500.0,0.00016632,2]
[347105445,1735500638826,-500.0,0.00016632,2]
[347105446,1735500638836,-500.0,0.00016632,2]
[347105447,1735500638846,-500.0,0.00016632,2]
[347105448,1735500638856,-500.0,0.00016632,2]
[347105449,1735500638866,-868.26,0.00016632,2]
[347105450,1735500638875,-500.0,0.00016632,2]
[347105451,1735500638885,-500.0,0.00016632,2]
[347105452,1735500638895,-500.0,0.00016632,2]
[347105453,1735500638905,-500.0,0.00016632,2]
[347105454,1735500638915,-500.0,0.00016632,2]
[347105455,1735500638924,-562.0,0.00016632,2]
[347105456,1735500638934,-586.56,0.00016632,2]
[347105457,1735500638944,-500.0,0.00016632,2]
[347105458,1735500638954,-500.0,0.00016632,2]
[347105459,1735500638964,-500.0,0.00016632,2]
[347105460,1735500638974,-500.0,0.00016632,2]
[347105461,1735500638984,-500.0,0.00016632,2]
[347105462,1735500638993,-500.0,0.00016633,2]
[347105463,1735500639003,-626.73,0.00016633,2]
[347105464,1735500639012,-500.0,0.00016633,2]
[347105465,1735500639021,-500.0,0.00016633,2]
[347105466,1735500639031,-500.0,0.00016633,2]
[347105467,1735500639040,-500.0,0.00016633,2]
[347105468,1735500639050,-500.0,0.00016633,2]
[347105469,1735500639060,-500.0,0.00016633,2]
[347105470,1735500639070,-500.0,0.00016633,2]
[347105471,1735500639079,-500.0,0.00016633,2]
[347105472,1735500639088,-628.9,0.00016633,2]
[347105473,1735500639098,-500.0,0.00016633,2]
[347105474,1735500639107,-500.0,0.00016633,2]
[347105475,1735500639116,-500.0,0.00016633,2]
[347105476,1735500639125,-500.0,0.00016633,2]
[347105477,1735500639135,-500.0,0.00016633,2]
[347105478,1735500639144,-560.7,0.00016633,2]
[347105479,1735500639154,-500.0,0.00016633,2]
[347105480,1735500639163,-506.56,0.00016633,2]
[347105481,1735500639173,-500.0,0.00016633,2]
[347105482,1735500639183,-500.0,0.00016633,2]
[347105483,1735500639194,-500.0,0.00016633,2]
[347105484,1735500639206,-500.0,0.00016633,2]
[347105485,1735500639216,-500.0,0.00016633,2]
[347105486,1735500639226,-500.0,0.00016633,2]
[347105487,1735500639236,-500.0,0.00016633,2]
[347105488,1735500639245,-500.0,0.00016633,2]
[347105489,1735500639255,-500.0,0.00016633,2]
[347105490,1735500639264,-500.0,0.00016633,2]
[347105491,1735500639275,-500.0,0.00016633,2]
[347105492,1735500639284,-500.0,0.00016633,2]
[347105493,1735500639293,-500.0,0.00016633,2]
[347105494,1735500639303,-500.0,0.00016633,2]
[347105495,1735500639313,-500.0,0.00016633,2]
[347105496,1735500639322,-500.0,0.00016633,2]
[347105497,1735500639331,-500.0,0.00016633,2]
[347105498,1735500639341,-500.0,0.00016633,2]
[347105499,1735500639350,-500.0,0.00016633,2]
[347105500,1735500639360,-500.0,0.00016633,2]
[347105501,1735500639369,-500.0,0.00016633,2]
[347105502,1735500639379,-500.0,0.00016633,2]
[347105503,1735500639388,-500.0,0.00016633,2]
[347105504,1735500639398,-500.0,0.00016633,2]
[347105505,1735500639408,-500.0,0.00016633,2]
[347105507,1735500639418,-500.0,0.00016633,2]
[347105508,1735500639427,-500.0,0.00016633,2]
[347105509,1735500639437,-500.0,0.00016633,2]
[347105510,1735500639447,-500.0,0.00016633,2]
[347105511,1735500639457,-500.0,0.00016633,2]
[347105512,1735500639467,-500.0,0.00016633,2]
[347105513,1735500639476,-500.0,0.00016633,2]
[347105514,1735500639486,-500.0,0.00016633,2]
[347105515,1735500639496,-500.0,0.00016633,2]
[347105516,1735500639507,-500.0,0.00016633,2]
[347105517,1735500639517,-500.0,0.00016633,2]
[347105518,1735500639527,-500.0,0.00016633,2]
[347105519,1735500639536,-500.0,0.00016633,2]
[347105520,1735500639546,-500.0,0.00016633,2]
[347105521,1735500639556,-628.78,0.00016633,2]
[347105522,1735500639566,-500.0,0.00016633,2]
[347105523,1735500639576,-500.0,0.00016633,2]
[347105524,1735500639585,-500.0,0.00016633,2]
[347105525,1735500639595,-500.0,0.00016633,2]
[347105526,1735500639605,-500.0,0.00016633,2]
[347105527,1735500639615,-500.0,0.00016633,2]
[347105528,1735500639624,-500.0,0.00016633,2]
[347105529,1735500639635,-500.0,0.00016633,2]
[347105530,1735500639644,-500.0,0.00016633,2]
[347105531,1735500639654,-500.0,0.00016633,2]
[347105532,1735500639664,-500.0,0.00016633,2]
[347105533,1735500639674,-500.0,0.00016633,2]
[347105534,1735500639684,-500.0,0.00016633,2]
[347105535,1735500639693,-500.0,0.00016633,2]
[347105536,1735500639703,-500.0,0.00016633,2]
[347105537,1735500639712,-500.0,0.00016633,2]
[347105538,1735500639722,-500.0,0.00016633,2]
[347105539,1735500639732,-500.0,0.00016633,2]
[347105540,1735500639742,-500.0,0.00016633,2]
[347105541,1735500639752,-500.0,0.00016633,2]
[347105542,1735500639762,-500.0,0.00016633,2]
[347105543,1735500639772,-500.0,0.00016633,2]
[347105544,1735500639781,-500.0,0.00016633,2]
[347105545,1735500639791,-500.0,0.00016633,2]
[347105546,1735500639800,-500.0,0.00016633,2]
[347105547,1735500639810,-506.24788827,0.00016633,2]
[347105548,1735500639819,-500.0,0.00016633,2]
[347105549,1735500639829,-500.0,0.00016633,2]
[347105550,1735500639838,-500.0,0.00016633,2]
[347105551,1735500639849,-500.0,0.00016633,2]
[347105552,1735500639858,-500.0,0.00016633,2]
[347105553,1735500639867,-500.0,0.00016633,2]
[347105554,1735500639877,-500.0,0.00016633,2]
[347105555,1735500639886,-500.0,0.00016633,2]
[347105556,1735500639895,-500.0,0.00016633,2]
[347105557,1735500639905,-500.0,0.00016633,2]
[347105558,1735500639914,-500.0,0.00016633,2]
[347105559,1735500639924,-500.0,0.00016633,2]
[347105560,1735500639933,-500.0,0.00016633,2]
[347105561,1735500639942,-500.0,0.00016633,2]
[347105562,1735500639951,-500.0,0.00016633,2]
[347105564,1735500639961,-500.0,0.00016633,2]
[347105566,1735500639970,-500.0,0.00016633,2]
[347105568,1735500639980,-500.0,0.00016633,2]
[347105570,1735500639989,-500.0,0.00016633,2]
[347105571,1735500639998,-500.0,0.00016633,2]
[347105572,1735500640008,-500.0,0.00016633,2]
[347105573,1735500640017,-500.0,0.00016633,2]
[347105574,1735500640026,-500.0,0.00016633,2]
[347105575,1735500640035,-500.0,0.00016633,2]
[347105576,1735500640044,-513.85129257,0.00016633,2]
[347105577,1735500640053,-500.0,0.00016633,2]
[347105578,1735500640063,-500.0,0.00016633,2]
[347105579,1735500640074,-500.0,0.00016633,2]
[347105580,1735500640083,-500.0,0.00016633,2]
[347105581,1735500640092,-500.0,0.00016633,2]
[347105582,1735500640103,-647.48,0.00016633,2]
[347105583,1735500640112,-513.3,0.00016633,2]
[347105584,1735500640122,-500.0,0.00016633,2]
[347105585,1735500640131,-500.0,0.00016633,2]
[347105586,1735500640140,-602.0,0.00016633,2]
[347105587,1735500640150,-500.0,0.00016633,2]
[347105588,1735500640160,-500.0,0.00016633,2]
[347105589,1735500640170,-500.0,0.00016633,2]
[347105590,1735500640180,-500.0,0.00016633,2]
[347105591,1735500640192,-500.0,0.00016633,2]
[347105592,1735500640206,-500.0,0.00016633,2]
[347105593,1735500640216,-500.0,0.00016633,2]
[347105594,1735500640225,-500.0,0.00016633,2]
[347105595,1735500640234,-500.0,0.00016633,2]
[347105596,1735500640245,-500.0,0.00016633,2]
[347105597,1735500640254,-500.0,0.00016633,2]
[347105598,1735500640263,-500.0,0.00016633,2]
[347105599,1735500640272,-629.24,0.00016633,2]
[347105600,1735500640281,-500.0,0.00016633,2]
[347105601,1735500640291,-500.0,0.00016633,2]
[347105602,1735500640300,-500.0,0.00016633,2]
[347105603,1735500640310,-500.0,0.00016633,2]
[347105604,1735500640319,-500.0,0.00016633,2]
[347105605,1735500640328,-500.0,0.00016633,2]
[347105606,1735500640337,-582.0,0.00016633,2]
[347105607,1735500640346,-500.0,0.00016633,2]
[347105608,1735500640355,-500.0,0.00016633,2]
[347105609,1735500640365,-500.0,0.00016633,2]
[347105610,1735500640375,-500.0,0.00016633,2]
[347105611,1735500640385,-500.0,0.00016633,2]
[347105612,1735500640395,-500.0,0.00016633,2]
[347105613,1735500640405,-520.34840845,0.00016633,2]
[347105614,1735500640415,-500.0,0.00016633,2]
[347105615,1735500640424,-500.0,0.00016633,2]
[347105616,1735500640434,-500.0,0.00016633,2]
[347105617,1735500640443,-500.0,0.00016633,2]
[347105618,1735500640453,-500.0,0.00016633,2]
[347105619,1735500640505,-500.0,0.00016633,2]
[347105620,1735500640514,-500.0,0.00016633,2]
[347105621,1735500640523,-500.0,0.00016633,2]
[347105622,1735500640532,-500.0,0.00016633,2]
[347105623,1735500640542,-500.0,0.00016633,2]
[347105624,1735500640551,-500.0,0.00016633,2]
[347105625,1735500640560,-500.0,0.00016633,2]
[347105626,1735500640570,-631.14,0.00016633,2]
[347105627,1735500640579,-500.0,0.00016633,2]
[347105628,1735500640588,-500.0,0.00016633,2]
[347105629,1735500640597,-500.0,0.00016633,2]
[347105630,1735500640606,-500.0,0.00016633,2]
[347105631,1735500640615,-589.68,0.00016633,2]
[347105632,1735500640625,-500.0,0.00016633,2]
[347105633,1735500640634,-500.0,0.00016633,2]
[347105634,1735500640643,-500.0,0.00016633,2]
[347105635,1735500640652,-500.0,0.00016633,2]
[347105636,1735500640662,-500.0,0.00016633,2]
[347105637,1735500640672,-500.0,0.00016633,2]
[347105638,1735500640681,-500.0,0.00016633,2]
[347105639,1735500640691,-500.0,0.00016633,2]
[347105640,1735500640699,-500.0,0.00016633,2]
[347105641,1735500640708,-500.0,0.00016633,2]
[347105642,1735500640717,-500.0,0.00016633,2]
[347105643,1735500640727,-500.0,0.00016633,2]
[347105644,1735500640737,-500.0,0.00016633,2]
[347105645,1735500640746,-500.0,0.00016633,2]
[347105646,1735500640755,-500.0,0.00016633,2]
[347105647,1735500640764,-500.0,0.00016633,2]
[347105648,1735500640773,-500.0,0.00016634,2]
[347105649,1735500640783,-253.73,0.00016634,2]
[347105650,1735500640791,-688.95,0.00016634,2]
[347105651,1735500640800,-356.954185,0.00016634,2]
[347105652,1735500640809,-306.890422,0.00016634,2]
[347105653,1735500640820,-305.28,0.00016634,2]
[347105654,1735500640829,-505.95,0.00016634,2]
[347105655,1735500640838,-788.16,0.00016634,2]
[347105656,1735500640847,-500.0,0.00016634,2]
[347105657,1735500640856,-356.954182,0.00016634,2]
[347105658,1735500640866,-500.0,0.00016634,2]
[347105659,1735500640876,-306.890421,0.00016634,2]
[347105660,1735500640887,-500.0,0.00016634,2]
[347105661,1735500640895,-267.88,0.00016634,2]
[347105662,1735500640905,-593.26,0.00016634,2]
[347105663,1735500640914,-310.66,0.00016634,2]
[347105664,1735500640924,-500.0,0.00016634,2]
[347105665,1735500640932,-500.0,0.00016634,2]
[347105666,1735500640942,-596.36,0.00016634,2]
[347105667,1735500640951,-500.0,0.00016634,2]
[347105668,1735500640960,-500.0,0.00016634,2]
[347105669,1735500640969,-500.0,0.00016634,2]
[347105670,1735500640979,-300.06,0.00016634,2]
[347105671,1735500640988,-217.0,0.00016634,2]
[347105672,1735500640997,-500.0,0.00016634,2]
[347105673,1735500641006,-500.0,0.00016634,2]
[347105674,1735500641015,-607.15,0.00016634,2]
[347105675,1735500641024,-305.84,0.00016634,2]
[347105676,1735500641033,-250.3,0.00016634,2]
[347105677,1735500641044,-500.0,0.00016634,2]
[347105678,1735500641053,-413.6,0.00016634,2]
[347105679,1735500641062,-500.0,0.00016634,2]
[347105680,1735500641073,-446.83,0.00016634,2]
[347105681,1735500641083,-747.01,0.00016634,2]
[347105682,1735500641094,-500.0,0.00016634,2]
[347105683,1735500641104,-438.88,0.00016634,2]
[347105684,1735500641114,-500.0,0.00016634,2]
[347105685,1735500641122,-500.0,0.00016634,2]
[347105686,1735500641131,-500.0,0.00016634,2]
[347105687,1735500641140,-352.92,0.00016634,2]
[347105688,1735500641148,-160.83,0.00016634,2]
[347105689,1735500641158,-500.0,0.00016634,2]
[347105690,1735500641167,-500.0,0.00016634,2]
[347105691,1735500641176,-500.0,0.00016634,2]
[347105692,1735500641185,-2013.54,0.00016634,2]
[347105693,1735500641194,-500.0,0.00016634,2]
[347105694,1735500641208,-500.0,0.00016634,2]
[347105695,1735500641217,-377.6,0.00016634,2]
[347105696,1735500641226,-500.0,0.00016634,2]
[347105697,1735500641235,-178.470111,0.00016634,2]
[347105698,1735500641245,-500.0,0.00016634,2]
[347105699,1735500641254,-500.0,0.00016634,2]
[347105700,1735500641263,-506.71,0.00016634,2]
[347105701,1735500641276,-500.0,0.00016634,2]
[347105702,1735500641285,-500.0,0.00016634,2]
[347105703,1735500641295,-1094.72,0.00016634,2]
[347105704,1735500641303,-500.0,0.00016634,2]
[347105705,1735500641312,-500.0,0.00016634,2]
[347105706,1735500641322,-662.98,0.00016634,2]
[347105707,1735500641331,-500.0,0.00016634,2]
[347105708,1735500641341,-500.0,0.00016634,2]
[347105709,1735500641350,-500.0,0.00016634,2]
[347105710,1735500641360,-500.0,0.00016634,2]
[347105711,1735500641369,-500.0,0.00016634,2]
[347105712,1735500641380,-500.0,0.00016634,2]
[347105713,1735500641389,-500.0,0.00016634,2]
[347105714,1735500641400,-500.0,0.00016634,2]
[347105715,1735500641409,-500.0,0.00016634,2]
[347105716,1735500641418,-2246.9,0.00016634,2]
[347105717,1735500641428,-500.0,0.00016635,2]
[347105718,1735500641437,-500.0,0.00016635,2]
[347105719,1735500641446,-1233.7,0.00016635,2]
[347105720,1735500641455,-500.0,0.00016635,2]
[347105721,1735500641464,-500.0,0.00016635,2]
[347105722,1735500641473,-500.0,0.0001664,14]
[347105723,1735500641482,-500.0,0.00016649,14]
[347105724,1735500641491,-222.1,0.00016658,30]
[347105725,1735500641500,-500.0,0.00016658,14]
[347105726,1735500641510,-1470.7,0.000167,2]
[347105727,1735500641519,-174.14533046,0.000167,2]
[347105728,1735500641527,-183.19,0.00016712,2]
[347105729,1735500641536,-500.0,0.00016773,2]
[347105730,1735500641546,-110513.0,0.00016799,2]
[347105731,1735500641555,-500.0,0.00016799,2]
[347105732,1735500641564,-342.16571356,0.00016799,2]
[347105733,1735500641573,-233723.32829502,0.000168,3]
[347105734,1735500641582,-39916.55644973,0.000168,3]
[347105735,1735500641768,-16682.03235424,0.000168,3]
[347105736,1735500641779,-2259.62505428,0.000168,3]
[347105737,1735500641791,-1095.24598585,0.000168,3]
[347105738,1735500641802,-583.32405185,0.000168,3]
[347105739,1735500641826,-500.0,0.00016086,2]
[347105740,1735500641836,-8120.15034212,0.000168,3]
[347105741,1735500641848,-852.116,0.000168,3]
[347105742,1735500641859,-294.0,0.000168,3]
[347105743,1735500641870,-451.752963,0.000168,3]
[347105744,1735500642316,-416.3300127,0.00016086,2]
[347105745,1735500642328,-83.6699873,0.00016086,2]
[347105746,1735500642337,-500.0,0.00016087,2]
[347105747,1735500642347,-500.0,0.00016272,2]
[347105748,1735500642356,-500.0,0.00016358,2]
[347105750,1735500642367,-500.0,0.00016358,2]
[347105753,1735500642377,-500.0,0.00016359,2]
[347105755,1735500642386,-500.0,0.0001636,2]
[347105757,1735500642396,-500.0,0.0001636,2]
[347105759,1735500642405,-500.0,0.00016361,2]
[347105761,1735500642414,-500.0,0.00016546,2]
[347105763,1735500642423,-500.0,0.00016623,14]
[347105765,1735500642433,-500.0,0.00016632,2]
[347105767,1735500642443,-500.0,0.00016633,2]
[347105769,1735500642452,-500.0,0.00016634,2]
[347105772,1735500642462,-500.0,0.00016634,2]
[347105774,1735500642471,-500.0,0.00016635,2]
[347105776,1735500642480,-200509.4551317,0.000168,3]
[347105777,1735500642490,-80862.83075449,0.000168,3]
[347105778,1735500642499,-174.14533046,0.00016807,2]
[347105779,1735500642510,-500.0,0.0001682,2]
[347105780,1735500642519,-500.0,0.0001682,2]
[347105781,1735500642529,-500.0,0.0001682,2]
[347105782,1735500642538,-500.0,0.0001682,2]
[347105783,1735500642548,-500.0,0.0001682,2]
[347105784,1735500642559,-500.0,0.0001682,2]
[347105785,1735500642570,-500.0,0.0001682,2]
[347105786,1735500642579,-500.0,0.0001682,2]
[347105787,1735500642589,-601.24,0.0001682,2]
[347105788,1735500642599,-500.0,0.0001682,2]
[347105789,1735500642608,-401.72,0.0001682,2]
[347105790,1735500642618,-500.0,0.0001682,2]
[347105791,1735500642627,-500.0,0.0001682,2]
[347105792,1735500642637,-321.02,0.00016821,2]
[347105793,1735500642646,-500.0,0.00016821,2]
[347105794,1735500642656,-185.27,0.00016895,2]
[347105795,1735500642665,-500.0,0.00016906,2]
[347105796,1735500642675,-500.0,0.00016906,2]
[347105797,1735500642684,-500.0,0.00016906,2]
[347105798,1735500642694,-500.0,0.00016906,2]
[347105799,1735500642703,-500.0,0.00016906,2]
[347105800,1735500642712,-231.4,0.00016906,2]
[347105801,1735500642722,-988.82,0.00016906,2]
[347105802,1735500642731,-500.0,0.00016906,2]
[347105803,1735500642740,-500.0,0.00016906,2]
[347105804,1735500642750,-500.0,0.00016906,2]
[347105805,1735500642759,-510.61,0.00016906,2]
[347105806,1735500642768,-500.0,0.00016906,2]
[347105807,1735500642778,-500.0,0.00016906,2]
[347105808,1735500642787,-500.0,0.00016906,2]
[347105809,1735500642796,-457.14,0.00016906,2]
[347105810,1735500642806,-500.0,0.00016906,2]
[347105811,1735500642816,-500.0,0.00016906,2]
[347105812,1735500642826,-500.0,0.00016906,2]
[347105813,1735500642836,-500.0,0.00016906,2]
[347105814,1735500642848,-868.26,0.00016906,2]
[347105815,1735500642858,-500.0,0.00016906,2]
[347105816,1735500642868,-309.14970049,0.00016906,2]
[347105817,1735500642879,-162.2,0.00016906,2]
[347105818,1735500642890,-500.0,0.00016906,2]
[347105820,1735500642900,-500.0,0.00016906,2]
[347105822,1735500642910,-497.73,0.00016907,2]
[347105824,1735500642919,-363.58,0.00016907,2]
[347105826,1735500642929,-535.98,0.00016907,2]
[347105828,1735500642939,-500.0,0.00016907,2]
[347105830,1735500642949,-324.58,0.00016907,2]
[347105832,1735500642958,-237.12,0.00016907,2]
[347105834,1735500642967,-481.14,0.00016907,2]
[347105836,1735500642977,-187.9,0.00016907,2]
[347105838,1735500642987,-500.0,0.00016907,2]
[347105840,1735500642996,-500.0,0.00016907,2]
[347105842,1735500643006,-500.0,0.00016907,2]
[347105844,1735500643015,-500.0,0.00016907,2]
[347105846,1735500643024,-500.0,0.00016907,2]
[347105847,1735500643034,-175.0,0.00016907,2]
[347105848,1735500643052,-500.0,0.00016907,2]
[347105849,1735500643063,-553.74,0.00016907,2]
[347105850,1735500643073,-443.36,0.00016907,2]
[347105851,1735500643083,-647.91,0.00016907,2]
[347105852,1735500643093,-500.0,0.00016907,2]
[347105853,1735500643103,-500.0,0.00016907,2]
[347105854,1735500643114,-500.0,0.00016907,2]
[347105855,1735500643124,-500.0,0.00016907,2]
[347105856,1735500643135,-196.34,0.00016907,2]
[347105857,1735500643146,-500.0,0.00016907,2]
[347105858,1735500643156,-356.24,0.00016907,2]
[347105859,1735500643166,-374.76,0.00016907,2]
[347105860,1735500643176,-500.0,0.00016907,2]
[347105861,1735500643186,-366.06,0.00016907,2]
[347105862,1735500643200,-294.92,0.00016907,2]
[347105863,1735500643210,-500.0,0.00016907,2]
[347105864,1735500643220,-500.0,0.00016907,2]
[347105865,1735500643230,-260.56,0.00016907,2]
[347105866,1735500643240,-500.0,0.00016907,2]
[347105867,1735500643250,-500.0,0.00016907,2]
[347105868,1735500643260,-500.0,0.00016907,2]
[347105869,1735500643270,-500.0,0.00016907,2]
[347105870,1735500643280,-500.0,0.00016907,2]
[347105871,1735500643290,-500.0,0.00016907,2]
[347105872,1735500643299,-500.0,0.00016907,2]
[347105873,1735500643310,-500.0,0.00016907,2]
[347105874,1735500643320,-213.74,0.00016907,2]
[347105875,1735500643329,-500.0,0.00016907,2]
[347105876,1735500643339,-500.0,0.00016907,2]
[347105877,1735500643348,-500.0,0.00016907,2]
[347105878,1735500643359,-500.0,0.00016907,2]
[347105879,1735500643369,-500.0,0.00016907,2]
[347105880,1735500643379,-563.8,0.00016907,2]
[347105881,1735500643389,-500.0,0.00016907,2]
[347105882,1735500643399,-386.9,0.00016907,2]
[347105883,1735500643409,-500.0,0.00016907,2]
[347105884,1735500643419,-500.0,0.00016907,2]
[347105885,1735500643429,-500.0,0.00016907,2]
[347105886,1735500643439,-348.7,0.00016907,2]
[347105887,1735500643449,-574.86,0.00016907,2]
[347105888,1735500643460,-500.0,0.00016907,2]
[347105889,1735500643470,-500.0,0.00016907,2]
[347105890,1735500643480,-434.32,0.00016907,2]
[347105891,1735500643490,-217.14,0.00016907,2]
[347105892,1735500643500,-289.9,0.00016907,2]
[347105893,1735500643511,-457.36,0.00016907,2]
[347105894,1735500643521,-325.58,0.00016907,2]
[347105895,1735500643531,-500.0,0.00016907,2]
[347105896,1735500643541,-500.0,0.00016907,2]
[347105897,1735500643551,-500.0,0.00016907,2]
[347105898,1735500643561,-500.0,0.00016907,2]
[347105899,1735500643570,-500.0,0.00016907,2]
[347105900,1735500643580,-500.0,0.00016907,2]
[347105901,1735500643590,-481.06,0.00016907,2]
[347105902,1735500643600,-500.0,0.00016907,2]
[347105903,1735500643610,-628.56,0.00016907,2]
[347105904,1735500643620,-500.0,0.00016907,2]
[347105905,1735500643630,-500.0,0.00016907,2]
[347105906,1735500643639,-500.0,0.00016907,2]
[347105907,1735500643649,-500.0,0.00016907,2]
[347105908,1735500643659,-500.0,0.00016907,2]
[347105909,1735500643668,-572.96,0.00016907,2]
[347105910,1735500643678,-305.92,0.00016907,2]
[347105911,1735500643688,-320.04,0.00016907,2]
[347105912,1735500643698,-377.18,0.00016907,2]